bitfinex-derivatives/quotes_ETHF0:USTF0_20250624
["timestamp","ask_amount","ask_price","bid_price","bid_amount"]
[1750790087291,5.2189324,2439.9,2439.8,0.65544]
[1750790087494,2.2661,2440.0,2439.9,0.65541]
[1750790087495,0.65539,2440.0,2439.9,0.65541]
[1750790087686,5.75931233,2440.1,2439.9,3.31181]
[1750790087991,26.29139,2440.0,2439.9,3.31181]
[1750790088191,25.636,2440.0,2439.9,3.31181]
[1750790088395,26.28939,2440.0,2439.9,2.6564]
[1750790088588,25.634,2440.0,2439.9,3.31181]
[1750790088789,26.28939,2440.0,2439.9,2.6564]
[1750790089194,26.28639,2440.0,2439.9,2.6564]
[1750790089396,25.631,2440.0,2439.9,2.6564]
[1750790089688,26.28639,2440.0,2439.9,9.5064]
[1750790089889,26.28639,2440.0,2439.9,2.6564]
[1750790090090,26.28639,2440.0,2439.9,9.5064]
[1750790090495,26.28639,2440.0,2439.9,2.6564]
[1750790090695,26.28639,2440.0,2439.9,3.31181]
[1750790090890,26.28639,2440.0,2439.9,9.5064]
[1750790091595,26.28639,2440.0,2439.9,2.6564]
[1750790091795,26.28639,2440.0,2439.9,9.5064]
[1750790091997,26.28639,2440.0,2439.9,2.6564]
[1750790092199,26.28639,2440.0,2439.9,9.5064]
[1750790092592,25.631,2440.0,2439.9,10.16181]
[1750790092992,5.75931233,2440.4,2439.9,9.5064]
[1750790093193,0.65538,2440.1,2439.9,10.16181]
[1750790093388,0.65538,2440.1,2440.0,0.65539]
[1750790093590,0.65538,2440.1,2440.0,3.93259]
[1750790093791,0.65538,2440.1,2440.0,5.49459]
[1750790093994,0.65538,2440.1,2440.0,4.8392]
[1750790094198,0.65535,2440.2,2440.0,4.8392]
[1750790094497,0.65536,2440.1,2440.0,4.8392]
[1750790094694,6.41467233,2440.1,2440.0,3.2772]
[1750790094996,6.41467233,2440.1,2440.0,1.65]
[1750790095501,6.41467233,2440.1,2440.0,8.499]
[1750790095800,0.65536,2440.1,2440.0,8.499]
[1750790096296,0.65536,2440.1,2440.0,11.8282]
[1750790096496,25.576,2440.1,2440.0,12.48358]
[1750790096793,0.65535,2440.2,2440.0,12.48357]
[1750790097001,2.39361133,2441.5,2440.4,3.2078]
[1750790097303,3.23538959,2441.8,2440.4,3.2078]
[1750790097304,0.65501,2441.4,2441.3,3.2078]
[1750790097600,0.65501,2441.4,2441.3,0.3]
[1750790098597,0.65499,2441.5,2441.3,3.5078]
[1750790098793,0.65499,2441.5,2441.3,5.0813]
[1750790099097,25.863,2441.6,2441.3,5.0813]
[1750790099400,0.65499,2441.5,2441.3,5.0813]
[1750790099595,25.863,2441.6,2441.4,0.655]
[1750790099795,0.65492,2441.8,2441.5,2.22847]
[1750790099995,31.94922563,2441.9,2441.5,1.5735]
[1750790100200,0.6549,2441.8,2441.5,2.6235]
[1750790100399,0.6549,2441.8,2441.7,3.2078]
[1750790100700,0.6549,2441.8,2441.7,3.2478]
[1750790101299,0.6549,2441.8,2441.7,0.04]
[1750790105105,6.41421233,2441.8,2441.7,3.2478]
[1750790105402,0.65509,2441.1,2441.0,3.2078]
[1750790105602,0.65508,2441.2,2441.0,5.3478]
[1750790105902,0.65509,2441.1,2441.0,7.0649]
[1750790106403,0.65507,2441.2,2441.0,7.0649]
[1750790106703,0.65505,2441.3,2441.1,0.65509]
[1750790106901,0.65505,2441.3,2441.2,1.7171]
[1750790107197,1.63736,2441.7,2441.2,2.91215]
[1750790107198,25.845,2441.7,2441.2,2.91215]
[1750790107403,0.65501,2441.5,2441.4,3.2078]
[1750790107600,0.65498,2441.6,2441.4,4.2078]
[1750790107797,0.65498,2441.6,2441.5,1.6532]
[1750790107992,0.65498,2441.6,2441.5,2.6532]
[1750790108407,0.65498,2441.6,2441.5,1.0]
[1750790108699,0.65498,2441.6,2441.3,8.5443]
[1750790108700,25.845,2441.7,2441.3,1.6983]
[1750790108901,25.845,2441.7,2441.3,0.07]
[1750790109095,0.65499,2441.5,2441.4,4.861]
[1750790109298,0.65499,2441.5,2441.4,2.0032]
[1750790116608,0.65509,2441.1,2441.0,6.946]
[1750790116806,0.65509,2441.1,2441.0,2.58]
[1750790119210,0.65509,2441.1,2441.0,4.2062]
[1750790120305,25.787,2441.4,2441.0,4.2062]
[1750790120610,1.7876777,2441.3,2441.1,2.37069]
[1750790120811,0.65506,2441.3,2441.2,4.7987]
[1750790121020,26.44202,2441.4,2441.2,7.58376]
[1750790121204,0.65504,2441.3,2441.2,6.9287]
[1750790121403,1.78844906,2441.3,2441.2,5.3378]
[1750790124514,1.78844906,2441.3,2441.2,2.13]
[1750790126516,4.18206039,2441.3,2441.2,2.13]
[1750790127214,1.78844906,2441.3,2441.2,2.13]
[1750790127415,4.18206039,2441.3,2441.2,2.13]
[1750790127615,1.78844906,2441.3,2441.2,2.13]
[1750790128814,1.78844906,2441.3,2441.2,5.3378]
[1750790130616,1.13340906,2441.3,2441.2,5.99287]
[1750790131917,1.78844906,2441.3,2441.2,5.99287]
[1750790132319,1.78844906,2441.3,2441.2,5.3378]
[1750790132816,1.78844906,2441.3,2441.2,6.9546]
[1750790133816,1.78844906,2441.3,2441.2,7.60967]
[1750790134425,1.78844906,2441.3,2441.2,6.9546]
[1750790135121,1.78844906,2441.3,2441.2,13.9006]
[1750790135316,1.78844906,2441.3,2441.2,15.4972]
[1750790135518,1.13340906,2441.3,2441.2,16.15227]
[1750790136213,1.78844906,2441.3,2441.2,16.15227]
[1750790136419,1.13340906,2441.3,2441.2,16.15227]
[1750790137025,1.78844906,2441.3,2441.2,16.15227]
[1750790137922,1.13340906,2441.3,2441.2,16.15227]
[1750790138221,1.78844906,2441.3,2441.2,8.5512]
[1750790138426,1.78844906,2441.3,2441.2,2.13]
[1750790140119,0.65512,2441.0,2440.9,3.2078]
[1750790140422,0.65512,2441.0,2440.9,5.7295]
[1750790140624,1.78852906,2441.0,2440.9,5.7295]
[1750790141419,1.78852906,2441.0,2440.9,7.3905]
[1750790141614,1.13340906,2441.0,2440.9,8.04565]
[1750790141824,1.78852906,2441.0,2440.9,7.3905]
[1750790142528,1.13340906,2441.0,2440.9,7.3905]
[1750790142722,1.78852906,2441.0,2440.9,7.3905]
[1750790143030,1.13340906,2441.0,2440.9,7.3905]
[1750790143224,1.78852906,2441.0,2440.9,7.3905]
[1750790143420,1.13340906,2441.0,2440.9,8.04565]
[1750790143622,0.65508,2441.2,2441.0,0.65512]
[1750790143821,1.13797137,2441.1,2441.0,4.09512]
[1750790144523,1.13797137,2441.1,2441.0,3.44]
[1750790144725,1.13797137,2441.1,2441.0,4.09512]
[1750790145232,0.65495,2441.7,2441.5,0.65498]
[1750790145429,0.65495,2441.7,2441.6,3.3415]
[1750790145631,4.06671338,2441.9,2441.6,3.99644]
[1750790145632,0.65491,2441.8,2441.6,3.99644]
[1750790145821,2.71225715,2442.0,2441.6,5.3115]
[1750790146026,2.71225715,2442.0,2441.8,3.2078]
[1750790146027,0.65489,2441.9,2441.8,3.2078]
[1750790146228,0.65489,2441.9,2441.8,3.2778]
[1750790148734,0.65493,2441.7,2441.6,3.3415]
[1750790148931,0.65493,2441.7,2441.6,3.5715]
[1750790151137,0.65493,2441.8,2441.6,4.22645]
[1750790151436,0.65493,2441.8,2441.7,3.2078]
[1750790151637,0.65493,2441.8,2441.7,4.2278]
[1750790152238,0.6549,2441.8,2441.7,4.2278]
[1750790153143,0.65489,2441.9,2441.7,4.88272]
[1750790153840,0.6549,2441.8,2441.7,4.2278]
[1750790154332,0.6549,2441.9,2441.7,4.88273]
[1750790154534,27.20202,2442.2,2441.7,4.2278]
[1750790154837,0.65489,2441.9,2441.7,4.88271]
[1750790155242,0.65489,2441.9,2441.7,4.2278]
[1750790155446,0.65486,2442.0,2441.8,0.6549]
[1750790155743,0.65479,2442.3,2441.9,6.836]
[1750790155939,1.63669,2442.7,2441.9,6.836]
[1750790155940,0.65476,2442.4,2442.2,3.86258]
[1750790156244,0.65474,2442.4,2442.3,3.0715]
[1750790156437,0.65474,2442.4,2442.3,0.06]
[1750790156941,2.15504,2442.4,2442.3,0.06]
[1750790157144,3.28572925,2442.4,2442.3,0.06]
[1750790168451,3.28572925,2442.4,2442.3,1.4794]
[1750790169654,1.78542925,2442.4,2442.3,1.4794]
[1750790172953,4.82725024,2442.4,2442.3,0.06]
[1750790173159,4.82725024,2442.4,2442.0,1.4583]
[1750790173160,0.65485,2442.0,2441.9,3.2078]
[1750790173451,29.18767099,2442.0,2441.9,3.2978]
[1750790173658,30.31836024,2442.0,2441.9,3.2978]
[1750790173846,27.27653925,2442.0,2441.9,3.2978]
[1750790174750,27.27653925,2442.0,2441.9,6.3779]
[1750790175457,26.62168925,2442.0,2441.9,7.03278]
[1750790175658,27.27653925,2442.0,2441.9,6.3779]
[1750790176052,26.62168925,2442.0,2441.9,7.03278]
[1750790176459,26.62168925,2442.0,2441.9,8.49898]
[1750790176658,1.13068925,2442.0,2441.9,15.25098]
[1750790176858,25.49,2442.4,2442.2,0.65478]
[1750790176859,0.65477,2442.4,2442.2,0.65478]
[1750790177056,2.68027213,2442.8,2442.3,11.3887]
[1750790177261,27.12658,2442.9,2442.6,3.2078]
[1750790177563,0.65464,2442.8,2442.7,1.4289]
[1750790177759,0.65464,2442.8,2442.7,8.0249]
[1750790177961,0.65462,2442.9,2442.7,8.67956]
[1750790178257,0.65462,2442.9,2442.8,1.506]
[1750790178455,0.65462,2442.9,2442.8,3.456]
[1750790180257,25.503,2443.1,2442.8,3.456]
[1750790180463,0.65459,2443.0,2442.9,6.1018]
[1750790180657,0.65459,2443.0,2442.9,8.7818]
[1750790183158,0.65458,2443.0,2442.9,8.7818]
[1750790183357,0.65466,2442.7,2442.6,3.2078]
[1750790183563,0.65466,2442.7,2442.6,3.2278]
[1750790183957,0.65466,2442.7,2442.6,4.6743]
[1750790184560,0.65466,2442.8,2442.6,4.6743]
[1750790184763,0.65466,2442.8,2442.7,1.4465]
[1750790185664,0.65466,2442.8,2442.7,1.6465]
[1750790188765,1.77721325,2442.8,2442.7,1.6465]
[1750790190864,0.65466,2442.8,2442.7,1.6465]
[1750790191772,1.77713985,2442.8,2442.7,1.6465]
[1750790191974,0.65466,2442.8,2442.7,1.6465]
[1750790192172,1.63626,2443.3,2442.7,6.6465]
[1750790192376,0.65456,2443.1,2443.0,3.2078]
[1750790192574,0.65456,2443.1,2443.0,4.6278]
[1750790192978,0.65455,2443.2,2443.0,6.0932]
[1750790193184,0.65455,2443.2,2443.0,6.74777]
[1750790193384,0.65456,2443.1,2443.0,6.74777]
[1750790193977,0.65455,2443.2,2443.1,0.65456]
[1750790194280,0.65455,2443.2,2443.1,6.39456]
[1750790195088,1.63608,2443.6,2443.2,0.65452]
[1750790195089,0.65452,2443.3,2443.2,0.65452]
[1750790195579,0.65452,2443.3,2443.2,6.80452]
[1750790195781,0.65452,2443.3,2443.2,6.15]
[1750790195980,1.63596,2443.8,2443.2,6.15]
[1750790195981,0.65449,2443.4,2443.2,6.15]
[1750790196176,0.65447,2443.5,2443.4,0.65447]
[1750790196382,8.87269133,2444.3,2443.4,0.65447]
[1750790196383,0.21667719,2444.5,2443.4,11.39816432]
[1750790196680,0.21667719,2444.5,2444.1,3.2078]
[1750790196681,0.65426,2444.2,2444.1,3.2078]
[1750790196880,0.65426,2444.2,2444.1,5.7178]
[1750790197481,0.65424,2444.3,2444.1,6.37207]
[1750790197781,0.65426,2444.2,2444.1,5.7178]
[1750790197980,0.65425,2444.3,2444.1,6.37209]
[1750790198586,3.2078,2444.9,2444.1,5.7178]
[1750790198875,0.65415,2444.6,2444.5,3.2078]
[1750790199086,0.65415,2444.6,2444.5,5.3278]
[1750790200584,0.86364143,2444.7,2444.5,5.3278]
[1750790200777,6.2042,2444.9,2444.5,5.3278]
[1750790200778,0.65415,2444.6,2444.5,5.3278]
[1750790204989,0.65412,2444.8,2444.5,5.3278]
[1750790205184,0.20787329,2444.9,2444.6,1.4835]
[1750790205387,1.4932,2445.1,2444.6,4.9035]
[1750790205585,0.6541,2444.8,2444.6,4.9035]
[1750790206202,0.86160292,2444.9,2444.6,5.55765]
[1750790206404,0.86160292,2444.9,2444.6,4.9035]
[1750790206405,0.6541,2444.8,2444.6,4.9035]
[1750790206697,0.65407,2445.0,2444.7,0.65413]
[1750790206901,0.86371944,2445.0,2444.9,3.2078]
[1750790207202,0.86371944,2445.0,2444.9,7.5278]
[1750790207697,0.65405,2445.0,2444.9,7.5278]
[1750790207902,0.65405,2445.0,2444.9,4.32]
[1750790209903,25.466,2445.3,2444.9,4.32]
[1750790210107,0.65402,2445.1,2445.0,1.3867]
[1750790210306,0.65402,2445.1,2445.0,3.9967]
[1750790211494,0.65402,2445.1,2445.0,2.61]
[1750790211701,0.65413,2444.7,2444.6,4.6001]
[1750790211901,0.65413,2444.7,2444.6,5.25876061]
[1750790213898,0.65413,2444.7,2444.6,1.06]
[1750790214101,1.76456489,2444.7,2444.6,1.06]
[1750790214398,7.50734087,2444.7,2444.6,1.06]
[1750790216008,0.65423,2444.3,2444.2,4.5816]
[1750790216302,0.65423,2444.3,2444.2,4.6316]
[1750790216500,0.65423,2444.3,2444.2,3.2578]
[1750790216701,0.65423,2444.3,2444.2,0.05]
[1750790216905,5.65423,2444.3,2444.2,0.05]
[1750790217208,0.65431,2444.0,2443.9,3.2078]
[1750790217401,0.65431,2444.0,2443.9,8.2578]
[1750790218603,1.76627595,2444.0,2443.9,8.2578]
[1750790219204,0.65431,2444.0,2443.9,8.2578]
[1750790219708,1.76700245,2444.0,2443.9,8.2578]
[1750790225508,1.76700245,2444.0,2443.9,5.05]
[1750790228601,1.76700245,2444.0,2443.9,8.2578]
[1750790228809,0.65448,2443.4,2443.3,3.2078]
[1750790229011,0.65442,2443.6,2443.5,1.4188]
[1750790229313,0.65442,2443.6,2443.5,1.5688]
[1750790229513,1.77548317,2443.6,2443.5,1.5688]
[1750790230216,0.65441,2443.7,2443.5,1.5688]
[1750790230612,25.456,2444.0,2443.7,0.65439]
[1750790230811,26.11033,2444.0,2443.9,3.2078]
[1750790231012,27.2307009,2444.0,2443.9,3.3278]
[1750790232121,1.1203709,2444.0,2443.9,3.3278]
[1750790232316,0.65431,2444.0,2443.9,3.3278]
[1750790232517,1.77508894,2444.0,2443.9,3.2078]
[1750790232813,1.77508894,2444.0,2443.9,3.3378]
[1750790233618,1.77508894,2444.0,2443.9,0.13]
[1750790233817,1.77498094,2444.0,2443.9,0.13]
[1750790234615,3.24038094,2444.0,2443.9,0.13]
[1750790234816,13.98315692,2444.0,2443.9,0.06161841]
[1750790235021,13.98315692,2444.0,2443.5,1.3645]
[1750790235022,0.65442,2443.6,2443.5,1.3645]
[1750790235326,26.10842,2443.6,2443.5,1.3945]
[1750790236022,26.10842,2443.6,2443.5,2.8679]
[1750790236323,0.65442,2443.6,2443.5,4.2639]
[1750790236522,26.11042,2443.6,2443.5,4.2639]
[1750790241223,0.6544,2443.7,2443.5,4.91835]
[1750790241429,0.6544,2443.7,2443.6,4.6084]
[1750790241728,0.6544,2443.7,2443.6,8.8984]
[1750790243428,1.77786588,2443.7,2443.6,8.8984]
[1750790243828,1.77786588,2443.7,2443.6,5.6906]
[1750790244230,1.77786588,2443.7,2443.6,8.8984]
[1750790244429,1.77785588,2443.7,2443.6,8.8984]
[1750790245427,1.77785588,2443.7,2443.6,5.6906]
[1750790246530,1.77785588,2443.7,2443.6,8.8984]
[1750790246531,1.12346588,2443.7,2443.6,8.8984]
[1750790246724,1.77786588,2443.7,2443.6,8.8984]
[1750790247324,1.77786588,2443.7,2443.6,1.4006]
[1750790247527,1.77786588,2443.7,2443.6,1.5206]
[1750790250024,1.77786588,2443.7,2443.6,0.12]
[1750790252331,27.22686588,2443.7,2443.6,0.12]
[1750790255740,1.77786588,2443.7,2443.6,0.12]
[1750790255941,27.22586588,2443.7,2443.6,0.12]
[1750790256638,27.22586588,2443.7,2443.6,1.4975]
[1750790257137,27.22586588,2443.7,2443.6,6.1832]
[1750790257437,1.12346588,2443.7,2443.6,6.83762]
[1750790257636,26.10135,2443.9,2443.7,0.65439]
[1750790257836,26.10135,2443.9,2443.8,2.8971]
[1750790258042,27.22539595,2443.9,2443.8,5.9471]
[1750790258541,26.57104595,2443.9,2443.8,6.60147]
[1750790258740,1.77847992,2443.9,2443.8,6.60147]
[1750790258943,1.77847992,2443.9,2443.8,5.9471]
[1750790259539,1.77847992,2443.9,2443.8,4.5279]
[1750790265130,1.12413992,2443.9,2443.8,5.18227]
[1750790265335,1.12413992,2443.9,2443.8,4.5279]
[1750790265642,1.77847992,2443.9,2443.8,4.5279]
[1750790266846,1.12413992,2443.9,2443.8,4.5279]
[1750790267049,1.12413992,2443.9,2443.8,5.18227]
[1750790267348,9.81702539,2443.9,2443.8,3.05]
[1750790267545,0.65448,2443.4,2443.3,7.5278]
[1750790267753,29.13102547,2443.4,2443.3,4.0778]
[1750790268046,30.25516539,2443.4,2443.3,4.0778]
[1750790269645,1.12413992,2443.4,2443.3,4.0778]
[1750790269855,26.56313992,2443.4,2443.3,4.0778]
[1750790270349,27.21761992,2443.4,2443.3,4.0778]
[1750790270746,26.56313992,2443.4,2443.3,4.0778]
[1750790270946,26.56313992,2443.4,2443.3,5.3978]
[1750790271146,27.21761992,2443.4,2443.3,5.3978]
[1750790271551,1.12413992,2443.4,2443.3,6.0523]
[1750790271848,1.12413992,2443.4,2443.3,11.0523]
[1750790272445,1.12413992,2443.4,2443.3,10.3978]
[1750790272752,1.77861992,2443.4,2443.3,10.3978]
[1750790272951,1.12413992,2443.4,2443.3,10.3978]
[1750790273450,1.77861992,2443.4,2443.3,10.3978]
[1750790274349,0.65445,2443.6,2443.4,0.65446]
[1750790274547,0.65442,2443.6,2443.5,6.0528]
[1750790274754,0.65442,2443.6,2443.5,8.0428]
[1750790275056,1.77659591,2443.6,2443.5,9.3522]
[1750790276654,1.77659591,2443.6,2443.5,10.00665]
[1750790277557,0.65441,2443.7,2443.6,0.65442]
[1750790277757,0.65441,2443.7,2443.6,2.33]
[1750790277955,1.776634,2443.7,2443.6,2.33]
[1750790278455,1.122224,2443.7,2443.6,2.98442]
[1750790280057,1.776624,2443.7,2443.6,2.98442]
[1750790280257,1.122224,2443.7,2443.6,2.98442]
[1750790281057,26.08634,2444.0,2443.9,0.65434]
[1750790281358,27.20852325,2444.0,2443.9,2.53434]
[1750790281754,1.77652325,2444.0,2443.9,3.95094]
[1750790281957,1.77652325,2444.0,2443.9,3.2966]
[1750790282155,1.12218325,2444.0,2443.9,3.95094]
[1750790282357,0.6542,2444.5,2443.9,7.97096547]
[1750790282561,0.6542,2444.5,2444.4,3.2078]
[1750790282763,0.6542,2444.5,2444.4,5.1278]
[1750790283358,0.6542,2444.5,2444.4,1.92]
[1750790285666,5.6542,2444.5,2444.4,1.92]
[1750790285963,5.6542,2444.5,2444.2,0.65425]
[1750790285964,0.65422,2444.4,2444.2,0.65425]
[1750790286163,3.69276547,2444.4,2444.2,0.65425]
[1750790286463,3.69276547,2444.4,2444.2,0.13]
[1750790286761,25.424,2444.5,2444.2,0.13]
[1750790286965,25.424,2444.5,2444.2,3.99205]
[1750790287162,25.424,2444.5,2444.3,2.01573]
[1750790287460,25.424,2444.5,2444.3,3.1015]
[1750790287651,26.07818,2444.5,2444.3,3.1015]
[1750790288368,0.65421,2444.4,2444.3,3.1015]
[1750790288576,0.65421,2444.4,2444.3,1.74]
[1750790289463,12.37721,2444.4,2444.3,1.74]
[1750790289666,14.42923,2444.4,2444.3,0.02]
[1750790289868,13.44791,2444.4,2444.3,0.02]
[1750790290169,0.65434,2443.9,2443.7,2.00119]
[1750790290361,0.65434,2443.9,2443.7,2.3668]
[1750790290556,3.69291547,2443.8,2443.7,1.02]
[1750790290757,3.69291547,2443.8,2443.1,1.4049]
[1750790290758,0.65453,2443.2,2443.1,1.4049]
[1750790290964,26.07351,2443.3,2443.1,2.4749]
[1750790291160,3.03854547,2443.4,2443.1,2.4749]
[1750790291461,25.419,2443.4,2443.3,3.2078]
[1750790291765,25.419,2443.6,2443.3,5.0878]
[1750790291960,0.65445,2443.5,2443.4,1.3146]
[1750790292161,0.65445,2443.5,2443.4,1.4046]
[1750790294369,1.76800184,2443.5,2443.4,1.4046]
[1750790294662,25.42,2443.5,2443.4,1.4046]
[1750790294865,25.419,2443.6,2443.5,0.65445]
[1750790295064,25.419,2443.6,2443.5,4.99025]
[1750790295968,26.07342,2443.6,2443.5,4.99025]
[1750790296266,25.419,2443.6,2443.5,4.99025]
[1750790296467,26.0744,2443.7,2443.5,4.99025]
[1750790296774,0.65442,2443.6,2443.5,4.3358]
[1750790296958,25.42,2443.7,2443.5,4.99025]
[1750790297272,0.65439,2443.8,2443.6,3.86221]
[1750790297461,26.07239,2443.8,2443.7,2.6713]
[1750790297664,0.65439,2443.8,2443.7,2.7813]
[1750790297970,0.65436,2443.9,2443.7,3.43568]
[1750790298365,0.65436,2443.9,2443.8,2.6824]
[1750790298671,1.11432146,2443.9,2443.8,3.41677]
[1750790298864,25.418,2444.0,2443.8,2.7624]
[1750790299065,26.07233,2444.0,2443.9,3.2078]
[1750790299266,27.18674321,2444.0,2443.9,0.02]
[1750790300872,26.53241321,2444.0,2443.9,0.67434]
[1750790301174,26.53241321,2444.0,2443.9,2.06824]
[1750790302077,1.11441321,2444.0,2443.9,2.06824]
[1750790302269,26.53041321,2444.0,2443.9,2.06824]
[1750790302467,2.41151975,2444.5,2443.9,2.06824]
[1750790302468,56.88354547,2444.7,2444.3,0.65422]
[1750790302662,0.65421,2444.4,2444.3,2.13]
[1750790302871,0.65421,2444.4,2444.3,5.35353]
[1750790303175,1.11324131,2444.4,2444.3,5.35353]
[1750790303570,1.76745131,2444.4,2444.3,5.35353]
[1750790303879,1.76745131,2444.4,2444.3,4.6993]
[1750790304074,1.11324131,2444.4,2444.3,5.35353]
[1750790304275,4.27817632,2444.9,2444.7,0.65411]
[1750790304276,0.65408,2444.9,2444.7,0.65411]
[1750790304581,0.6541,2444.8,2444.7,5.1978]
[1750790304779,0.6541,2444.8,2444.7,1.99]
[1750790305077,26.06809,2444.9,2444.7,2.64412]
[1750790305671,26.06809,2444.9,2444.7,1.99]
[1750790305672,0.6541,2444.8,2444.7,1.99]
[1750790306778,0.6541,2444.8,2444.7,3.3137]
[1750790307580,26.06809,2444.9,2444.7,3.3137]
[1750790307773,26.06809,2444.9,2444.8,1.3237]
[1750790307975,0.65406,2445.0,2444.8,1.3737]
[1750790308182,3.2078,2445.3,2444.9,3.2078]
[1750790308366,25.407,2445.2,2445.0,1.4411]
[1750790308566,25.407,2445.2,2445.1,0.65402]
[1750790308771,25.407,2445.2,2445.1,3.83712]
[1750790308972,25.407,2445.2,2445.1,5.27822]
[1750790309175,3.2078,2445.3,2445.1,5.27822]
[1750790309176,7.36391,2445.5,2445.1,4.6242]
[1750790309380,7.36391,2445.5,2445.1,5.2782]
[1750790309381,25.407,2445.4,2445.1,5.2782]
[1750790309580,26.06096,2445.4,2445.1,5.2782]
[1750790310176,4.4849,2445.6,2445.2,3.2078]
[1750790310177,6.24634547,2445.6,2445.2,3.2078]
[1750790310375,25.407,2445.4,2445.2,5.73178]
[1750790310582,25.406,2445.4,2445.3,2.09506]
[1750790310779,25.406,2445.4,2445.3,2.16506]
[1750790310982,25.403,2445.4,2445.3,2.16506]
[1750790311779,3.2078,2445.6,2445.3,1.5111]
[1750790311983,25.403,2445.6,2445.5,0.65391]
[1750790312184,25.403,2445.6,2445.5,4.39391]
[1750790312776,26.05689,2445.6,2445.5,4.39391]
[1750790313580,7.60594547,2446.0,2445.5,3.74]
[1750790313788,7.60594547,2446.0,2445.6,2.6202]
[1750790313789,0.65387,2445.7,2445.6,2.6202]
[1750790313986,0.65387,2445.7,2445.6,4.93409]
[1750790314178,0.65387,2445.7,2445.6,4.2802]
[1750790314682,3.69241547,2445.7,2445.6,4.2802]
[1750790315075,3.69241547,2445.7,2445.6,1.66]
[1750790316383,3.03854547,2445.9,2445.7,0.65385]
[1750790316683,25.396,2445.9,2445.8,1.3119]
[1750790316982,26.04981,2445.9,2445.8,1.3119]
[1750790317378,29.08835547,2445.9,2445.8,1.3119]
[1750790317583,0.65383,2445.8,2445.7,2.6176]
[1750790317782,0.65383,2445.8,2445.7,2.6576]
[1750790317979,0.65383,2445.8,2445.7,0.04]
[1750790320488,26.04383,2445.8,2445.7,0.04]
[1750790321285,3.03854547,2445.9,2445.7,0.69386]
[1750790321486,3.2078,2446.0,2445.8,1.4183]
[1750790321686,3.2078,2446.0,2445.8,4.6304]
[1750790321890,6.707,2446.2,2445.8,7.8382]
[1750790322183,0.65371,2446.3,2446.1,0.65374]
[1750790322380,25.388,2446.3,2446.2,1.4183]
[1750790322581,25.388,2446.3,2446.2,1.4383]
[1750790323184,3.2078,2446.4,2446.2,1.4383]
[1750790323386,29.24748,2446.4,2446.2,1.4383]
[1750790323685,26.03968,2446.4,2446.2,1.4383]
[1750790323885,25.386,2446.4,2446.2,1.4383]
[1750790324091,0.6537,2446.3,2446.2,1.4383]
[1750790324288,0.6537,2446.3,2446.2,0.02]
[1750790324492,25.386,2446.4,2446.2,0.02]
[1750790324693,0.6537,2446.3,2446.2,1.4192]
[1750790324896,0.65379,2446.0,2445.8,11.1659]
[1750790325090,1.63426,2446.3,2445.8,13.4551]
[1750790325294,0.65381,2445.9,2445.8,13.4551]
[1750790325584,0.65381,2445.9,2445.8,6.7591]
[1750790325786,26.03781,2445.9,2445.8,6.7591]
[1750790325993,26.03781,2445.9,2445.8,4.0978]
[1750790327693,26.03781,2445.9,2445.8,0.89]
[1750790327893,26.03781,2445.9,2445.8,4.0978]
[1750790328989,26.03781,2445.9,2445.8,4.75163]
[1750790329995,26.03781,2445.9,2445.8,4.0978]
[1750790330286,26.03781,2445.9,2445.8,4.75163]
[1750790331193,0.65381,2445.9,2445.8,4.75163]
[1750790332094,26.03079,2446.0,2445.9,0.65381]
[1750790332396,26.03078,2446.0,2445.9,0.89]
[1750790334385,26.03078,2446.0,2445.9,1.54381]
[1750790334584,27.13486526,2446.0,2445.9,4.75161]
[1750790334782,26.03078,2446.0,2445.9,4.75161]
[1750790335284,0.65378,2446.0,2445.9,4.75161]
[1750790335681,1.10449908,2446.0,2445.9,4.75161]
[1750790336387,1.75827908,2446.0,2445.9,0.89]
[1750790340594,1.10449908,2446.0,2445.9,1.54381]
[1750790341695,1.10449908,2446.0,2445.9,4.75161]
[1750790341902,1.75827908,2446.0,2445.9,4.0978]
[1750790342199,1.75827908,2446.0,2445.9,0.89]
[1750790344000,1.75827908,2446.0,2445.9,1.54381]
[1750790344205,1.75827908,2446.0,2445.9,2.87851]
[1750790344496,1.75827908,2446.0,2445.9,2.2247]
[1750790344793,1.10449908,2446.0,2445.9,6.08631]
[1750790345395,1.75827908,2446.0,2445.9,5.4325]
[1750790345699,1.10449908,2446.0,2445.9,5.4325]
[1750790345893,1.10449908,2446.0,2445.9,6.08631]
[1750790346496,1.75827908,2446.0,2445.9,6.08631]
[1750790346705,1.10449908,2446.0,2445.9,6.08631]
[1750790346893,1.75827908,2446.0,2445.9,6.08631]
[1750790347793,1.75827908,2446.0,2445.9,5.4325]
[1750790348198,1.75827908,2446.0,2445.9,6.08631]
[1750790350898,1.75827908,2446.0,2445.9,5.4325]
[1750790351107,4.79044225,2446.0,2445.9,0.89]
[1750790358206,11.47244225,2446.0,2445.9,0.89]
[1750790361705,1.75827908,2446.0,2445.9,0.89]
[1750790361905,27.11227908,2446.0,2445.9,0.89]
[1750790362405,1.75827908,2446.0,2445.9,0.89]
[1750790362606,27.11027908,2446.0,2445.9,0.89]
[1750790363003,27.11027908,2446.0,2445.9,2.2932]
[1750790363199,1.10449908,2446.0,2445.9,2.94701]
[1750790363403,27.11027908,2446.0,2445.9,2.94701]
[1750790363602,27.11027908,2446.0,2445.9,2.2932]
[1750790363801,1.75827908,2446.0,2445.9,2.2932]
[1750790364003,27.10927908,2446.0,2445.9,2.2932]
[1750790364504,30.14144225,2446.0,2445.9,0.89]